[Event "*** Titled Tuesday 3|2 Blitz"]
[Site "Chess.com"]
[Date "2015.10.06"]
[Round "8"]
[White "gumersindo"]
[Black "Arashy_CC"]
[Result "0-1"]
[WhiteElo "2163"]
[BlackElo "2364"]
[TimeControl "180+2"]
[EndTime "12:38:32 PDT"]
[Termination "Arashy_CC won by resignation"]

1. d4 {[%clk 0:03:01.9]} 1... g6 {[%clk 0:03:01.2]} 2. c4 {[%clk 0:03:02]} 2...
Bg7 {[%clk 0:03:02.5]} 3. Nf3 {[%clk 0:03:02.7]} 3... Nf6 {[%clk 0:03:01.5]} 4.
Nc3 {[%clk 0:03:03.7]} 4... O-O {[%clk 0:03:03]} 5. e4 {[%clk 0:03:04.8]} 5...
d6 {[%clk 0:02:59.6]} 6. Be2 {[%clk 0:03:05.6]} 6... e5 {[%clk 0:02:55.7]} 7.
O-O {[%clk 0:03:06.1]} 7... Qe8 {[%clk 0:02:56.5]} 8. d5 {[%clk 0:03:05.9]} 8...
Nh5 {[%clk 0:02:56.4]} 9. Re1 {[%clk 0:03:00.1]} 9... a5 {[%clk 0:02:30.2]} 10.
Be3 {[%clk 0:02:59.4]} 10... Na6 {[%clk 0:02:29.2]} 11. a3 {[%clk 0:02:56.2]}
11... Bd7 {[%clk 0:02:28.9]} 12. b3 {[%clk 0:02:52.3]} 12... f5 {[%clk
0:02:29.9]} 13. Bc1 {[%clk 0:02:33]} 13... Nc5 {[%clk 0:02:21.6]} 14. Nd2 {[%clk
0:02:32.6]} 14... Nf4 {[%clk 0:02:21.1]} 15. Bf1 {[%clk 0:02:30.4]} 15... Bh6
{[%clk 0:01:54]} 16. Nf3 {[%clk 0:02:13.6]} 16... fxe4 {[%clk 0:01:51]} 17. Nxe4
{[%clk 0:02:12]} 17... Nxe4 {[%clk 0:01:50.1]} 18. Rxe4 {[%clk 0:02:12.9]} 18...
Bg4 {[%clk 0:01:45.2]} 19. Be2 {[%clk 0:01:19.4]} 19... Nxe2+ {[%clk 0:01:38.8]}
20. Qxe2 {[%clk 0:01:19.7]} 20... Bxf3 {[%clk 0:01:39.3]} 0-1

[Event "*** Titled Tuesday 3|2 Blitz"]
[Site "Chess.com"]
[Date "2015.10.06"]
[Round "8"]
[White "kesarev"]
[Black "tac49"]
[Result "0-1"]
[WhiteElo "2204"]
[BlackElo "2475"]
[TimeControl "180+2"]
[EndTime "12:38:58 PDT"]
[Termination "tac49 won by resignation"]

1. Nf3 {[%clk 0:03:01.9]} 1... Nf6 {[%clk 0:03:00.1]} 2. c4 {[%clk 0:03:01.9]}
2... g6 {[%clk 0:03:01.4]} 3. Nc3 {[%clk 0:03:02.3]} 3... Bg7 {[%clk 0:03:02.7]}
4. e4 {[%clk 0:03:02.9]} 4... O-O {[%clk 0:03:04.1]} 5. d4 {[%clk 0:03:03.9]}
5... d6 {[%clk 0:03:04.5]} 6. h3 {[%clk 0:03:04.4]} 6... e5 {[%clk 0:03:04.5]}
7. d5 {[%clk 0:03:05.1]} 7... Na6 {[%clk 0:03:05.6]} 8. Be3 {[%clk 0:03:00.9]}
8... Nh5 {[%clk 0:03:05.4]} 9. Nd2 {[%clk 0:02:59.7]} 9... Qe8 {[%clk
0:02:58.8]} 10. Be2 {[%clk 0:02:18.6]} 10... Nf4 {[%clk 0:02:58.4]} 11. Bf3
{[%clk 0:02:19.3]} 11... f5 {[%clk 0:02:54]} 12. Qc2 {[%clk 0:02:15.9]} 12...
Nb4 {[%clk 0:02:52.1]} 13. Qb3 {[%clk 0:02:06.6]} 13... Nbd3+ {[%clk 0:02:49.7]}
14. Kd1 {[%clk 0:02:03]} 14... Nxg2 {[%clk 0:02:19.6]} 15. Bxg2 {[%clk
0:01:58.1]} 15... f4 {[%clk 0:02:20.8]} 16. Kc2 {[%clk 0:01:47.1]} 16... fxe3
{[%clk 0:02:18.4]} 17. Kxd3 {[%clk 0:01:47.5]} 17... exd2 {[%clk 0:02:19.2]} 18.
Raf1 {[%clk 0:01:36.7]} 18... Bh6 {[%clk 0:02:13.9]} 19. Nb1 {[%clk 0:01:32.2]}
19... b5 {[%clk 0:02:04]} 20. Nxd2 {[%clk 0:01:20.7]} 20... bxc4+ {[%clk
0:02:01.4]} 21. Nxc4 {[%clk 0:01:10.6]} 21... Ba6 {[%clk 0:01:59.6]} 22. Kc2
{[%clk 0:01:05.7]} 22... Rb8 {[%clk 0:01:56]} 23. Qc3 {[%clk 0:01:05.5]} 23...
Qa4+ {[%clk 0:01:54.4]} 24. b3 {[%clk 0:01:00.3]} 24... Qxa2+ {[%clk 0:01:52.8]}
25. Qb2 {[%clk 0:00:59.5]} 0-1

[Event "*** Titled Tuesday 3|2 Blitz"]
[Site "Chess.com"]
[Date "2015.10.06"]
[Round "8"]
[White "Baggio95"]
[Black "Er_is_geen_hoop_meer"]
[Result "0-1"]
[WhiteElo "2381"]
[BlackElo "2378"]
[TimeControl "180+2"]
[EndTime "12:39:08 PDT"]
[Termination "Er_is_geen_hoop_meer won by resignation"]

1. Nc3 {[%clk 0:02:56.7]} 1... c5 {[%clk 0:02:49.2]} 2. g3 {[%clk 0:02:55.2]}
2... h5 {[%clk 0:02:48.2]} 3. h4 {[%clk 0:02:51.5]} 3... Nh6 {[%clk 0:02:48.8]}
4. Nf3 {[%clk 0:02:49.8]} 4... Nc6 {[%clk 0:02:41.2]} 5. d3 {[%clk 0:02:48.9]}
5... d5 {[%clk 0:02:42]} 6. Bxh6 {[%clk 0:02:46.6]} 6... Rxh6 {[%clk 0:02:42.8]}
7. Bg2 {[%clk 0:02:47.8]} 7... d4 {[%clk 0:02:43.7]} 8. Ne4 {[%clk 0:02:46.6]}
8... Bf5 {[%clk 0:02:43.8]} 9. O-O {[%clk 0:02:45.2]} 9... Bxe4 {[%clk
0:02:44.8]} 10. dxe4 {[%clk 0:02:46.2]} 10... e5 {[%clk 0:02:45.4]} 11. Nd2
{[%clk 0:02:44.1]} 11... Bd6 {[%clk 0:02:45.7]} 12. a4 {[%clk 0:02:42.5]} 12...
g5 {[%clk 0:02:46.4]} 13. Nf3 {[%clk 0:02:42.4]} 13... Be7 {[%clk 0:02:46.2]}
14. hxg5 {[%clk 0:02:41.3]} 14... Bxg5 {[%clk 0:02:48.1]} 15. Bh3 {[%clk
0:02:29.3]} 15... Qf6 {[%clk 0:02:48.3]} 16. c3 {[%clk 0:02:26.1]} 16... Ke7
{[%clk 0:02:46.3]} 17. cxd4 {[%clk 0:02:25.6]} 17... cxd4 {[%clk 0:02:47.6]} 18.
Qb3 {[%clk 0:02:25.4]} 18... Rb8 {[%clk 0:02:45.5]} 19. Qa3+ {[%clk 0:02:21.9]}
19... Ke8 {[%clk 0:02:44.5]} 20. Bf5 {[%clk 0:02:09.2]} 20... h4 {[%clk
0:02:44.7]} 21. g4 {[%clk 0:02:09.3]} 21... h3 {[%clk 0:02:46]} 22. Qc5 {[%clk
0:02:04]} 22... Bf4 {[%clk 0:02:40.3]} 23. a5 {[%clk 0:01:57.3]} 23... Ne7
{[%clk 0:02:40.7]} 24. Qc7 {[%clk 0:01:51.3]} 24... Rd8 {[%clk 0:02:39.5]} 25.
Kh1 {[%clk 0:01:40.6]} 25... Nxf5 {[%clk 0:02:36.3]} 26. gxf5 {[%clk 0:01:36.8]}
26... Qc6 {[%clk 0:02:36.4]} 27. Qxc6+ {[%clk 0:01:28.3]} 27... Rxc6 {[%clk
0:02:38.3]} 28. Rg1 {[%clk 0:01:27.3]} 28... Ke7 {[%clk 0:02:36.2]} 29. b4
{[%clk 0:01:22.7]} 29... Rc2 {[%clk 0:02:29.8]} 30. Rge1 {[%clk 0:01:15.5]}
30... Rg8 {[%clk 0:02:27.2]} 31. Ng1 {[%clk 0:01:15.2]} 31... Rc3 {[%clk
0:02:20.9]} 32. e3 {[%clk 0:01:10.1]} 32... dxe3 {[%clk 0:02:21.4]} 33. fxe3
{[%clk 0:01:10.9]} 33... Bxe3 {[%clk 0:02:21.8]} 34. Nxh3 {[%clk 0:01:11.4]}
34... Bd4 {[%clk 0:02:22.1]} 35. Kh2 {[%clk 0:01:09.6]} 35... Rh8 {[%clk
0:02:22.9]} 0-1

[Event "*** Titled Tuesday 3|2 Blitz"]
[Site "Chess.com"]
[Date "2015.10.06"]
[Round "8"]
[White "Zvonokchess"]
[Black "AlexanderL"]
[Result "0-1"]
[WhiteElo "2542"]
[BlackElo "2558"]
[TimeControl "180+2"]
[EndTime "12:39:51 PDT"]
[Termination "AlexanderL won on time"]

1. Nf3 {[%clk 0:02:55.9]} 1... d5 {[%clk 0:03:00.7]} 2. g3 {[%clk 0:02:57.2]}
2... Nf6 {[%clk 0:02:57.9]} 3. Bg2 {[%clk 0:02:58.1]} 3... e6 {[%clk 0:02:58.9]}
4. O-O {[%clk 0:02:57.8]} 4... Be7 {[%clk 0:03:00.1]} 5. c4 {[%clk 0:02:58.8]}
5... O-O {[%clk 0:03:00.7]} 6. b3 {[%clk 0:03:00]} 6... d4 {[%clk 0:02:59]} 7.
Bb2 {[%clk 0:02:58.9]} 7... c5 {[%clk 0:03:00]} 8. e3 {[%clk 0:03:00.2]} 8...
Nc6 {[%clk 0:03:01.1]} 9. exd4 {[%clk 0:03:01.3]} 9... cxd4 {[%clk 0:03:02.4]}
10. Re1 {[%clk 0:03:01.5]} 10... a5 {[%clk 0:02:58.5]} 11. a3 {[%clk 0:03:01.1]}
11... Qb6 {[%clk 0:02:52.7]} 12. Ne5 {[%clk 0:02:57.5]} 12... Nd7 {[%clk
0:02:48.9]} 13. Nxd7 {[%clk 0:00:22.5]} 13... Bxd7 {[%clk 0:02:50.8]} 14. d3
{[%clk 0:00:23.3]} 14... f6 {[%clk 0:02:44]} 15. Nd2 {[%clk 0:00:18.5]} 15... e5
{[%clk 0:02:44.4]} 16. Ne4 {[%clk 0:00:14.5]} 16... f5 {[%clk 0:02:42]} 17. Nd2
{[%clk 0:00:14.3]} 17... Bf6 {[%clk 0:02:43.2]} 18. Rc1 {[%clk 0:00:13.1]} 18...
Qc5 {[%clk 0:02:44.3]} 19. Bd5+ {[%clk 0:00:11.2]} 19... Kh8 {[%clk 0:02:44.9]}
20. Nf3 {[%clk 0:00:08.2]} 20... Rae8 {[%clk 0:02:43.5]} 21. Kg2 {[%clk
0:00:05.4]} 21... b6 {[%clk 0:02:38.7]} 22. Qd2 {[%clk 0:00:05.8]} 22... Qd6
{[%clk 0:02:29]} 23. b4 {[%clk 0:00:05]} 23... axb4 {[%clk 0:02:29.1]} 24. axb4
{[%clk 0:00:05.5]} 24... Qxb4 {[%clk 0:02:24.7]} 25. Qe2 {[%clk 0:00:02.3]}
25... e4 {[%clk 0:02:21.4]} 26. dxe4 {[%clk 0:00:02.6]} 26... d3 {[%clk
0:02:22.7]} 27. Qxd3 {[%clk 0:00:03.2]} 27... Qxb2 {[%clk 0:02:21.3]} 0-1

[Event "*** Titled Tuesday 3|2 Blitz"]
[Site "Chess.com"]
[Date "2015.10.06"]
[Round "8"]
[White "ItalianMachine"]
[Black "Moltini"]
[Result "0-1"]
[WhiteElo "2209"]
[BlackElo "2178"]
[TimeControl "180+2"]
[EndTime "12:40:41 PDT"]
[Termination "Moltini won by resignation"]

1. e4 {[%clk 0:02:24.6]} 1... c5 {[%clk 0:02:58.8]} 2. Nf3 {[%clk 0:02:23]} 2...
d6 {[%clk 0:03:00]} 3. c3 {[%clk 0:02:20.7]} 3... Nf6 {[%clk 0:03:00]} 4. Bd3
{[%clk 0:02:21.9]} 4... Nc6 {[%clk 0:02:59.7]} 5. Bc2 {[%clk 0:02:23]} 5... g6
{[%clk 0:03:00.6]} 6. d4 {[%clk 0:02:24.2]} 6... cxd4 {[%clk 0:03:01.4]} 7. cxd4
{[%clk 0:02:25.7]} 7... Bg7 {[%clk 0:03:02.8]} 8. Nc3 {[%clk 0:02:25.5]} 8...
O-O {[%clk 0:03:03.4]} 9. h3 {[%clk 0:02:26.2]} 9... a6 {[%clk 0:03:02.4]} 10.
Bg5 {[%clk 0:02:19.3]} 10... b5 {[%clk 0:03:02.4]} 11. O-O {[%clk 0:02:20.3]}
11... Bb7 {[%clk 0:03:02.8]} 12. d5 {[%clk 0:02:19.5]} 12... Nb8 {[%clk
0:02:55.6]} 13. Qd2 {[%clk 0:02:14.6]} 13... Nbd7 {[%clk 0:02:55.3]} 14. Bh6
{[%clk 0:02:15.4]} 14... Rc8 {[%clk 0:02:54.9]} 15. Bxg7 {[%clk 0:02:15.9]}
15... Kxg7 {[%clk 0:02:55.2]} 16. a4 {[%clk 0:02:15.7]} 16... b4 {[%clk
0:02:55.5]} 17. Nd1 {[%clk 0:02:02.6]} 17... a5 {[%clk 0:02:56]} 18. Ne3 {[%clk
0:02:04]} 18... Ba6 {[%clk 0:02:56.5]} 19. Rfe1 {[%clk 0:02:03.4]} 19... Nc5
{[%clk 0:02:57]} 20. Qd4 {[%clk 0:01:58.9]} 20... Nd7 {[%clk 0:02:46.9]} 21.
Rac1 {[%clk 0:01:51.6]} 21... Qb6 {[%clk 0:02:43.8]} 22. b3 {[%clk 0:01:39]}
22... Rc3 {[%clk 0:02:39.8]} 23. Qd2 {[%clk 0:01:13]} 23... Rfc8 {[%clk
0:02:38.6]} 24. Nd4 {[%clk 0:01:06.5]} 24... Nc5 {[%clk 0:02:35.3]} 25. f3
{[%clk 0:01:01.9]} 25... Nd3 {[%clk 0:02:31]} 26. Nc6 {[%clk 0:00:38]} 26...
Nxc1 {[%clk 0:02:22]} 27. Qxc1 {[%clk 0:00:38.9]} 27... e6 {[%clk 0:02:09]} 28.
Kh2 {[%clk 0:00:32.6]} 28... exd5 {[%clk 0:02:10]} 29. exd5 {[%clk 0:00:34]}
29... Re8 {[%clk 0:02:05.8]} 30. Ng4 {[%clk 0:00:28.2]} 30... Nxg4+ {[%clk
0:01:39.4]} 31. hxg4 {[%clk 0:00:28.9]} 31... Rxe1 {[%clk 0:01:34]} 32. Qxe1
{[%clk 0:00:30]} 32... Rxc2 {[%clk 0:01:35]} 33. g5 {[%clk 0:00:17.5]} 33... Qf2
{[%clk 0:01:30.1]} 34. Qa1+ {[%clk 0:00:18.5]} 34... Rc3 {[%clk 0:01:30.8]} 35.
Nxa5 {[%clk 0:00:12.4]} 35... Bf1 {[%clk 0:01:31]} 0-1

[Event "*** Titled Tuesday 3|2 Blitz"]
[Site "Chess.com"]
[Date "2015.10.06"]
[Round "8"]
[White "PowerThinking2650"]
[Black "BakaPG"]
[Result "0-1"]
[WhiteElo "2084"]
[BlackElo "2493"]
[TimeControl "180+2"]
[EndTime "12:41:07 PDT"]
[Termination "BakaPG won by checkmate"]

1. e4 {[%clk 0:03:01.8]} 1... e6 {[%clk 0:02:57]} 2. d4 {[%clk 0:03:02.2]} 2...
d5 {[%clk 0:02:57.6]} 3. Nd2 {[%clk 0:03:03.1]} 3... a6 {[%clk 0:02:56.6]} 4. c3
{[%clk 0:02:57.3]} 4... Nf6 {[%clk 0:02:54.2]} 5. e5 {[%clk 0:02:57.3]} 5...
Nfd7 {[%clk 0:02:53.7]} 6. Bd3 {[%clk 0:02:58.2]} 6... c5 {[%clk 0:02:54.3]} 7.
Ne2 {[%clk 0:02:59]} 7... Nc6 {[%clk 0:02:54.4]} 8. f4 {[%clk 0:02:54.1]} 8...
b5 {[%clk 0:02:50.4]} 9. Nf3 {[%clk 0:02:48]} 9... Qb6 {[%clk 0:02:48.4]} 10.
Be3 {[%clk 0:02:44.5]} 10... f5 {[%clk 0:02:42.8]} 11. Ng5 {[%clk 0:02:33]}
11... c4 {[%clk 0:02:31.4]} 12. Bc2 {[%clk 0:02:25.8]} 12... Ne7 {[%clk
0:02:27.2]} 13. O-O {[%clk 0:01:55.9]} 13... h6 {[%clk 0:02:25.8]} 14. Nf3
{[%clk 0:01:55.6]} 14... Nb8 {[%clk 0:02:21.9]} 15. h3 {[%clk 0:01:53.8]} 15...
Nbc6 {[%clk 0:02:20.4]} 16. g4 {[%clk 0:01:44.3]} 16... g6 {[%clk 0:02:20.9]}
17. Ng3 {[%clk 0:01:43.4]} 17... Bd7 {[%clk 0:02:19]} 18. Kg2 {[%clk 0:01:43.5]}
18... O-O-O {[%clk 0:02:18.2]} 19. b4 {[%clk 0:01:42]} 19... cxb3 {[%clk
0:02:14.9]} 20. axb3 {[%clk 0:01:42.5]} 20... Be8 {[%clk 0:02:09.5]} 21. Bd3
{[%clk 0:01:41.8]} 21... fxg4 {[%clk 0:02:03]} 22. hxg4 {[%clk 0:01:42.1]} 22...
h5 {[%clk 0:02:03.4]} 23. Ng5 {[%clk 0:01:30.2]} 23... Na5 {[%clk 0:02:00.8]}
24. Nxe6 {[%clk 0:01:13.1]} 24... Qxe6 {[%clk 0:02:00]} 25. Rxa5 {[%clk
0:01:13.3]} 25... hxg4 {[%clk 0:01:55.5]} 26. Qa1 {[%clk 0:00:57.2]} 26... Kb7
{[%clk 0:01:53.4]} 27. f5 {[%clk 0:00:32.1]} 27... gxf5 {[%clk 0:01:52.6]} 28.
Nxf5 {[%clk 0:00:32.8]} 28... Nxf5 {[%clk 0:01:48.6]} 29. Bxf5 {[%clk
0:00:33.7]} 29... Qc6 {[%clk 0:01:46.6]} 30. Bd3 {[%clk 0:00:29.1]} 30... Be7
{[%clk 0:01:36.1]} 31. Rh1 {[%clk 0:00:13.5]} 31... Bg6 {[%clk 0:01:35.1]} 32.
Rxh8 {[%clk 0:00:13.5]} 32... Rxh8 {[%clk 0:01:34.5]} 33. Bxb5 {[%clk
0:00:10.9]} 33... Be4+ {[%clk 0:01:33.7]} 34. Kg3 {[%clk 0:00:11]} 34... Bh4+
{[%clk 0:01:28.2]} 35. Kxg4 {[%clk 0:00:11.3]} 35... Qg6+ {[%clk 0:01:28.6]} 36.
Kh3 {[%clk 0:00:12.3]} 36... Qg3# {[%clk 0:01:28.7]} 0-1

[Event "*** Titled Tuesday 3|2 Blitz"]
[Site "Chess.com"]
[Date "2015.10.06"]
[Round "8"]
[White "Nutflush"]
[Black "Bab3s"]
[Result "1-0"]
[WhiteElo "1952"]
[BlackElo "2098"]
[TimeControl "180+2"]
[EndTime "12:41:11 PDT"]
[Termination "Nutflush won on time"]

1. e4 {[%clk 0:03:01.9]} 1... e5 {[%clk 0:03:00.4]} 2. Nf3 {[%clk 0:03:01.3]}
2... Nc6 {[%clk 0:03:01.5]} 3. Bc4 {[%clk 0:02:54.7]} 3... Bc5 {[%clk
0:03:01.3]} 4. c3 {[%clk 0:02:54.5]} 4... Nf6 {[%clk 0:03:01.5]} 5. d4 {[%clk
0:02:55.8]} 5... exd4 {[%clk 0:03:03.4]} 6. O-O {[%clk 0:02:57.2]} 6... dxc3
{[%clk 0:02:53.2]} 7. e5 {[%clk 0:02:56.5]} 7... Ng4 {[%clk 0:02:42.1]} 8. Bxf7+
{[%clk 0:02:49.1]} 8... Kxf7 {[%clk 0:02:41.6]} 9. Qd5+ {[%clk 0:02:50.4]} 9...
Ke8 {[%clk 0:02:26.9]} 10. Qxc5 {[%clk 0:02:51.4]} 10... b6 {[%clk 0:02:26.2]}
11. Qxc3 {[%clk 0:02:50.7]} 11... Qe7 {[%clk 0:02:19.9]} 12. Bg5 {[%clk
0:02:34.4]} 12... Qe6 {[%clk 0:02:18.4]} 13. Nbd2 {[%clk 0:02:29.1]} 13... h6
{[%clk 0:02:00.1]} 14. Bf4 {[%clk 0:02:22.8]} 14... Rf8 {[%clk 0:01:58.8]} 15.
Bg3 {[%clk 0:02:22.6]} 15... h5 {[%clk 0:01:43.9]} 16. Rfe1 {[%clk 0:02:11.9]}
16... Bb7 {[%clk 0:01:43.2]} 17. Ne4 {[%clk 0:01:44.6]} 17... Kd8 {[%clk
0:01:06.7]} 18. Rad1 {[%clk 0:01:33.1]} 18... Kc8 {[%clk 0:01:03.6]} 19. Neg5
{[%clk 0:01:28.7]} 19... Qe7 {[%clk 0:01:02.3]} 20. Bh4 {[%clk 0:01:12.5]} 20...
Qc5 {[%clk 0:00:49.5]} 21. e6 {[%clk 0:00:34.4]} 21... dxe6 {[%clk 0:00:32.3]}
22. Qxg7 {[%clk 0:00:33.7]} 22... Rd8 {[%clk 0:00:18.2]} 23. Nxe6 {[%clk
0:00:32.4]} 1-0

[Event "*** Titled Tuesday 3|2 Blitz"]
[Site "Chess.com"]
[Date "2015.10.06"]
[Round "8"]
[White "oggy1984"]
[Black "Haridaskesavan"]
[Result "1-0"]
[WhiteElo "2355"]
[BlackElo "2037"]
[TimeControl "180+2"]
[EndTime "12:41:25 PDT"]
[Termination "oggy1984 won by resignation"]

1. e4 {[%clk 0:03:01.9]} 1... e5 {[%clk 0:03:00.2]} 2. Nf3 {[%clk 0:03:02]} 2...
Nc6 {[%clk 0:02:52.9]} 3. Bb5 {[%clk 0:02:59.8]} 3... a6 {[%clk 0:02:53.3]} 4.
Ba4 {[%clk 0:02:59.9]} 4... d6 {[%clk 0:02:54.5]} 5. O-O {[%clk 0:02:57.5]} 5...
Ne7 {[%clk 0:02:54.7]} 6. c3 {[%clk 0:02:56.1]} 6... g6 {[%clk 0:02:55.7]} 7. h3
{[%clk 0:02:54.5]} 7... Bg7 {[%clk 0:02:56.4]} 8. d4 {[%clk 0:02:54.6]} 8... O-O
{[%clk 0:02:56.3]} 9. Re1 {[%clk 0:02:51.8]} 9... h6 {[%clk 0:02:56.1]} 10. d5
{[%clk 0:02:47.1]} 10... Nb8 {[%clk 0:02:56.3]} 11. c4 {[%clk 0:02:47.8]} 11...
f5 {[%clk 0:02:57.2]} 12. exf5 {[%clk 0:02:45.1]} 12... gxf5 {[%clk 0:02:57.7]}
13. Bc2 {[%clk 0:02:44.2]} 13... Ng6 {[%clk 0:02:57.6]} 14. Nc3 {[%clk
0:02:39.7]} 14... Nd7 {[%clk 0:02:56.2]} 15. b3 {[%clk 0:02:29.7]} 15... Nf6
{[%clk 0:02:49.4]} 16. Rb1 {[%clk 0:02:27.6]} 16... Rf7 {[%clk 0:02:40.6]} 17.
c5 {[%clk 0:02:26.7]} 17... Bf8 {[%clk 0:02:41.3]} 18. b4 {[%clk 0:02:19.6]}
18... Rg7 {[%clk 0:02:41.7]} 19. cxd6 {[%clk 0:02:06]} 19... cxd6 {[%clk
0:02:42.1]} 20. b5 {[%clk 0:02:04.5]} 20... Bd7 {[%clk 0:02:36.4]} 21. bxa6
{[%clk 0:02:03.9]} 21... bxa6 {[%clk 0:02:37.2]} 22. Ne2 {[%clk 0:01:57.8]}
22... Rc8 {[%clk 0:02:36.3]} 23. Rb7 {[%clk 0:01:46]} 23... Nh5 {[%clk
0:02:29.8]} 24. Ng3 {[%clk 0:01:27.8]} 24... Nxg3 {[%clk 0:02:26.3]} 25. fxg3
{[%clk 0:01:27.9]} 25... Qa5 {[%clk 0:02:05.7]} 26. Bxh6 {[%clk 0:01:20.5]}
26... Rh7 {[%clk 0:01:53.4]} 27. Rxd7 {[%clk 0:01:16.9]} 27... Rxd7 {[%clk
0:01:52.2]} 28. Bxf5 {[%clk 0:01:16.8]} 28... Bxh6 {[%clk 0:01:22.3]} 29. Bxd7
{[%clk 0:01:16.1]} 29... Rc1 {[%clk 0:01:16.9]} 30. Be6+ {[%clk 0:01:16.1]}
30... Kg7 {[%clk 0:01:16.4]} 31. Qe2 {[%clk 0:01:15.8]} 31... Qc5+ {[%clk
0:01:10.2]} 32. Kh2 {[%clk 0:01:14.2]} 32... Rc2 {[%clk 0:01:10.2]} 33. Qe4
{[%clk 0:01:08]} 33... Qf2 {[%clk 0:01:08.5]} 34. Nh4 {[%clk 0:00:45.3]} 34...
Nf4 {[%clk 0:01:01.3]} 35. gxf4 {[%clk 0:00:39.4]} 35... Bxf4+ {[%clk
0:01:01.2]} 36. Kh1 {[%clk 0:00:39.1]} 36... Qg3 {[%clk 0:00:58.3]} 37. Nf5+
{[%clk 0:00:37.8]} 1-0

[Event "*** Titled Tuesday 3|2 Blitz"]
[Site "Chess.com"]
[Date "2015.10.06"]
[Round "8"]
[White "GregShahade"]
[Black "Goala"]
[Result "1-0"]
[WhiteElo "2302"]
[BlackElo "2156"]
[TimeControl "180+2"]
[EndTime "12:41:40 PDT"]
[Termination "GregShahade won by resignation"]

1. e4 {[%clk 0:03:01.9]} 1... e6 {[%clk 0:02:35.1]} 2. d4 {[%clk 0:03:01.9]}
2... d5 {[%clk 0:02:35.3]} 3. Nd2 {[%clk 0:03:02.6]} 3... Nf6 {[%clk 0:02:33.8]}
4. e5 {[%clk 0:03:03.6]} 4... Nfd7 {[%clk 0:02:34.9]} 5. c3 {[%clk 0:03:05.2]}
5... c5 {[%clk 0:02:35.9]} 6. Bd3 {[%clk 0:03:06.8]} 6... Nc6 {[%clk 0:02:37.8]}
7. Ne2 {[%clk 0:03:08.3]} 7... cxd4 {[%clk 0:02:39.3]} 8. cxd4 {[%clk
0:03:10.2]} 8... f6 {[%clk 0:02:41.2]} 9. exf6 {[%clk 0:03:12.1]} 9... Nxf6
{[%clk 0:02:43.1]} 10. O-O {[%clk 0:03:13.2]} 10... Bd6 {[%clk 0:02:45]} 11. Nf3
{[%clk 0:03:14.6]} 11... Qc7 {[%clk 0:02:46.5]} 12. g3 {[%clk 0:03:14.8]} 12...
O-O {[%clk 0:02:45.3]} 13. Bf4 {[%clk 0:03:15]} 13... Ng4 {[%clk 0:02:39.8]} 14.
Bxd6 {[%clk 0:03:11.3]} 14... Qxd6 {[%clk 0:02:41.7]} 15. Nc3 {[%clk 0:03:10.8]}
15... e5 {[%clk 0:02:23.1]} 16. dxe5 {[%clk 0:02:57.5]} 16... Qh6 {[%clk
0:02:04.1]} 17. h4 {[%clk 0:02:57]} 17... Ngxe5 {[%clk 0:01:33.5]} 18. Ng5
{[%clk 0:02:50.8]} 18... Bg4 {[%clk 0:01:16.9]} 19. Bxh7+ {[%clk 0:02:49.8]}
19... Kh8 {[%clk 0:01:17.4]} 20. Qa4 {[%clk 0:02:39.9]} 20... Nf3+ {[%clk
0:01:05.4]} 21. Nxf3 {[%clk 0:02:33]} 21... Bxf3 {[%clk 0:01:07.3]} 22. Bc2
{[%clk 0:02:20]} 22... d4 {[%clk 0:00:58.3]} 23. Nb5 {[%clk 0:02:12.6]} 23...
Rad8 {[%clk 0:00:49.2]} 24. Rae1 {[%clk 0:01:54.7]} 24... d3 {[%clk 0:00:30.9]}
25. Bd1 {[%clk 0:01:55.5]} 25... d2 {[%clk 0:00:25]} 26. Re3 {[%clk 0:01:50.9]}
26... Bxd1 {[%clk 0:00:13.8]} 27. Qxd1 {[%clk 0:01:51.7]} 27... Nd4 {[%clk
0:00:13.5]} 28. Nxd4 {[%clk 0:01:48.5]} 28... Rxd4 {[%clk 0:00:15.4]} 29. Qe2
{[%clk 0:01:44.7]} 29... Kh7 {[%clk 0:00:08.4]} 30. Rd1 {[%clk 0:01:41.4]} 30...
Rfd8 {[%clk 0:00:09.2]} 31. Re5 {[%clk 0:01:37.3]} 31... Qf6 {[%clk 0:00:09]}
32. Qh5+ {[%clk 0:01:34.6]} 32... Kg8 {[%clk 0:00:10.5]} 33. Re8+ {[%clk
0:01:35.6]} 33... Rxe8 {[%clk 0:00:12]} 34. Qxe8+ {[%clk 0:01:36.9]} 34... Kh7
{[%clk 0:00:13.7]} 35. Qh5+ {[%clk 0:01:35.1]} 35... Kg8 {[%clk 0:00:14.7]} 36.
Qe2 {[%clk 0:01:34.7]} 36... Qd6 {[%clk 0:00:15.3]} 37. h5 {[%clk 0:01:33.7]}
37... Qd5 {[%clk 0:00:15.3]} 38. Qe8+ {[%clk 0:01:29.2]} 38... Kh7 {[%clk
0:00:16.1]} 39. Qg6+ {[%clk 0:01:30]} 39... Kg8 {[%clk 0:00:17.2]} 40. h6 {[%clk
0:01:28.6]} 40... Qe5 {[%clk 0:00:10.5]} 41. Qxg7+ {[%clk 0:01:25.7]} 41... Qxg7
{[%clk 0:00:11.6]} 42. hxg7 {[%clk 0:01:27.2]} 42... Kxg7 {[%clk 0:00:13.5]} 43.
Kf1 {[%clk 0:01:28.1]} 43... Ra4 {[%clk 0:00:11.2]} 44. a3 {[%clk 0:01:26.5]}
44... Rd4 {[%clk 0:00:11.8]} 45. Ke2 {[%clk 0:01:27.4]} 1-0